fUST/lending_fUST_20260322
["ID","MTS","AMOUNT","RATE_DAILY","PERIOD"]
[408704584,1774156245684,-1200.0,0.00017804,2]
[408704585,1774156245694,-1961.73922536,0.00017805,2]
[408704586,1774156245704,-170.5744002,0.00018078,2]
[408704587,1774156245714,-300.0,0.00018094,2]
[408704588,1774156245724,-2357.0,0.00018095,5]
[408704589,1774156245734,-707.44558345,0.00018095,5]
[408704590,1774156245746,-182.55441655,0.00018095,5]
[408704591,1774156245756,-833.0,0.00018095,5]
[408704592,1774156245766,-4620.87956867,0.00018355,2]
[408704600,1774156246326,-16088.33631341,0.00018355,2]
[408704601,1774156246339,-7224.73759648,0.00018355,2]
[408704602,1774156246349,-2197.0,0.00018355,5]
[408704603,1774156246360,-9335.73989391,0.00018427,2]
[408704809,1774157440709,-5000.0,9.211e-05,2]
[408704810,1774157440719,-191.590741,9.493e-05,2]
[408704811,1774157440728,-1000.0,0.00013699,2]
[408704812,1774157440738,-191.590741,0.0001424,2]
[408704813,1774157440747,-298.7,0.00015,2]
[408704814,1774157440756,-300.0,0.00015008,2]
[408704815,1774157440765,-298.0,0.00015008,2]
[408704816,1774157440774,-3353.8562308,0.00015009,2]
[408704817,1774157440783,-2204.0,0.00018427,5]
[408704818,1774157441040,-161.81755201,0.00018436,2]
[408704819,1774157441060,-1000.0,0.00018496,2]
[408704820,1774157441069,-191.590741,0.00018986,2]
[408704821,1774157441079,-176.665,0.00019605,2]
[408704822,1774157441088,-417.5867008,0.00019605,2]
[408704823,1774157441097,-454.870675,0.00020896,2]
[408704824,1774157441106,-151.0,0.00021911,2]
[408704825,1774157441115,-151.0,0.00021911,2]
[408704826,1774157441124,-151.0,0.00021911,2]
[408704827,1774157441134,-151.0,0.00021911,2]
[408704828,1774157441143,-151.0,0.00021911,2]
[408704829,1774157441152,-151.0,0.00021911,2]
[408704830,1774157441161,-151.0,0.00021911,2]
[408704831,1774157441170,-151.0,0.00021911,2]
[408704832,1774157441179,-151.0,0.00021911,2]
[408704833,1774157441188,-151.0,0.00021911,2]
[408704834,1774157441197,-234.732276,0.00021911,2]
[408704835,1774157441206,-194.258707,0.00021912,2]
[408704836,1774157441215,-194.258707,0.00021912,2]
[408704837,1774157441223,-194.258707,0.00021912,2]
[408704838,1774157441233,-194.258707,0.00021912,2]
[408704839,1774157441242,-194.258707,0.00021912,2]
[408704840,1774157441251,-194.258707,0.00021912,2]
[408704841,1774157441260,-194.258707,0.00021912,2]
[408704842,1774157441269,-194.258707,0.00021912,2]
[408704843,1774157441281,-194.258707,0.00021912,2]
[408704844,1774157441290,-194.258707,0.00021912,2]
[408704845,1774157441299,-194.258707,0.00021912,2]
[408704846,1774157441308,-194.258707,0.00021912,2]
[408704847,1774157441319,-194.258707,0.00021912,2]
[408704848,1774157441328,-194.258707,0.00021912,2]
[408704849,1774157441338,-194.258707,0.00021912,2]
[408704850,1774157441347,-194.258707,0.00021912,2]
[408704851,1774157441358,-194.258707,0.00021912,2]
[408704852,1774157441369,-194.258707,0.00021912,2]
[408704853,1774157441380,-194.258707,0.00021912,2]
[408704854,1774157441391,-194.258701,0.00021912,2]
[408704855,1774157441400,-151.0,0.00021912,2]
[408704856,1774157441410,-151.0,0.00021912,2]
[408704857,1774157441419,-151.0,0.00021912,2]
[408704858,1774157441428,-151.0,0.00021912,2]
[408704859,1774157441437,-151.0,0.00021912,2]
[408704860,1774157441447,-151.0,0.00021912,2]
[408704861,1774157441456,-151.0,0.00021912,2]
[408704862,1774157441465,-151.0,0.00021912,2]
[408704863,1774157441474,-151.0,0.00021912,2]
[408704864,1774157441484,-151.0,0.00021912,2]
[408704865,1774157441494,-151.0,0.00021912,2]
[408704866,1774157441504,-151.0,0.00021912,2]
[408704867,1774157441513,-166.847931,0.00021912,2]
[408704868,1774157441523,-159.182339,0.00021912,2]
[408704869,1774157441533,-159.182339,0.00021912,2]
[408704870,1774157441543,-159.182339,0.00021912,2]
[408704871,1774157441552,-159.182339,0.00021912,2]
[408704872,1774157441561,-159.182339,0.00021912,2]
[408704873,1774157441570,-159.182339,0.00021912,2]
[408704874,1774157441579,-159.182339,0.00021912,2]
[408704875,1774157441588,-159.182339,0.00021912,2]
[408704876,1774157441597,-159.182339,0.00021912,2]
[408704877,1774157441607,-159.182339,0.00021912,2]
[408704878,1774157441615,-159.182339,0.00021912,2]
[408704879,1774157441624,-159.182339,0.00021912,2]
[408704880,1774157441634,-159.182339,0.00021912,2]
[408704881,1774157441643,-159.182339,0.00021912,2]
[408704882,1774157441652,-159.182339,0.00021912,2]
[408704883,1774157441661,-159.182339,0.00021912,2]
[408704884,1774157441670,-159.182339,0.00021912,2]
[408704885,1774157441679,-159.182339,0.00021912,2]
[408704886,1774157441689,-159.182339,0.00021912,2]
[408704887,1774157441698,-159.182333,0.00021912,2]
[408704888,1774157441709,-267.512856,0.00021913,2]
[408704889,1774157441718,-267.512856,0.00021913,2]
[408704890,1774157441728,-267.512856,0.00021913,2]
[408704891,1774157441738,-267.512856,0.00021913,2]
[408704892,1774157441749,-267.512856,0.00021913,2]
[408704893,1774157441759,-267.512856,0.00021913,2]
[408704894,1774157441769,-267.512856,0.00021913,2]
[408704895,1774157441778,-267.512856,0.00021913,2]
[408704896,1774157441788,-267.512856,0.00021913,2]
[408704897,1774157441797,-267.512856,0.00021913,2]
[408704898,1774157441809,-267.512856,0.00021913,2]
[408704899,1774157441819,-267.512856,0.00021913,2]
[408704900,1774157441832,-267.512856,0.00021913,2]
[408704901,1774157441843,-267.512856,0.00021913,2]
[408704902,1774157441854,-267.512856,0.00021913,2]
[408704903,1774157441863,-267.512856,0.00021913,2]
[408704904,1774157441872,-151.0,0.00021913,2]
[408704905,1774157441881,-267.512856,0.00021913,2]
[408704906,1774157441890,-151.0,0.00021913,2]
[408704907,1774157441899,-267.512856,0.00021913,2]
[408704908,1774157441908,-151.0,0.00021913,2]
[408704909,1774157441918,-151.412138,0.00021913,2]
[408704910,1774157441927,-151.0,0.00021913,2]
[408704911,1774157441936,-267.512856,0.00021913,2]
[408704912,1774157441945,-151.412138,0.00021913,2]
[408704913,1774157441954,-151.0,0.00021913,2]
[408704914,1774157441963,-267.512862,0.00021913,2]
[408704915,1774157441972,-151.412138,0.00021913,2]
[408704916,1774157441981,-151.0,0.00021913,2]
[408704917,1774157441990,-151.412138,0.00021913,2]
[408704918,1774157441999,-151.0,0.00021913,2]
[408704919,1774157442011,-151.412138,0.00021913,2]
[408704920,1774157442020,-281.131059,0.00021913,2]
[408704921,1774157442029,-151.412138,0.00021913,2]
[408704922,1774157442039,-151.412138,0.00021913,2]
[408704923,1774157442048,-151.412138,0.00021913,2]
[408704924,1774157442058,-151.412138,0.00021913,2]
[408704925,1774157442067,-151.412138,0.00021913,2]
[408704926,1774157442076,-151.412138,0.00021913,2]
[408704927,1774157442086,-151.412138,0.00021913,2]
[408704928,1774157442095,-151.412138,0.00021913,2]
[408704929,1774157442104,-151.412138,0.00021913,2]
[408704930,1774157442114,-151.412138,0.00021913,2]
[408704931,1774157442123,-151.412138,0.00021913,2]
[408704932,1774157442133,-151.412138,0.00021913,2]
[408704933,1774157442143,-151.412138,0.00021913,2]
[408704934,1774157442152,-151.412138,0.00021913,2]
[408704935,1774157442162,-151.412138,0.00021913,2]
[408704936,1774157442171,-151.0,0.00021913,2]
[408704937,1774157442180,-151.0,0.00021913,2]
[408704938,1774157442190,-151.0,0.00021913,2]
[408704939,1774157442199,-151.0,0.00021913,2]
[408704940,1774157442208,-151.0,0.00021913,2]
[408704941,1774157442217,-151.0,0.00021913,2]
[408704942,1774157442227,-151.0,0.00021913,2]
[408704943,1774157442237,-151.0,0.00021913,2]
[408704944,1774157442246,-151.0,0.00021913,2]
[408704945,1774157442255,-282.185411,0.00021913,2]
[408704946,1774157442264,-151.0,0.00021913,2]
[408704947,1774157442273,-151.0,0.00021913,2]
[408704948,1774157442286,-151.0,0.00021913,2]
[408704949,1774157442295,-151.0,0.00021913,2]
[408704950,1774157442304,-151.0,0.00021913,2]
[408704951,1774157442313,-151.0,0.00021913,2]
[408704952,1774157442323,-156.13345,0.00021913,2]
[408704953,1774157442333,-396.832438,0.00021913,2]
[408704954,1774157442342,-396.832438,0.00021913,2]
[408704955,1774157442352,-396.832438,0.00021913,2]
[408704956,1774157442361,-396.832438,0.00021913,2]
[408704957,1774157442370,-396.832438,0.00021913,2]
[408704958,1774157442380,-396.832438,0.00021913,2]
[408704959,1774157442390,-396.832438,0.00021913,2]
[408704960,1774157442399,-396.832438,0.00021913,2]
[408704961,1774157442409,-396.832438,0.00021913,2]
[408704962,1774157442419,-396.832438,0.00021913,2]
[408704963,1774157442428,-396.832438,0.00021913,2]
[408704964,1774157442438,-396.832438,0.00021913,2]
[408704965,1774157442448,-396.832438,0.00021913,2]
[408704966,1774157442458,-396.832438,0.00021913,2]
[408704967,1774157442467,-396.832438,0.00021913,2]
[408704968,1774157442477,-396.832438,0.00021913,2]
[408704969,1774157442486,-396.832438,0.00021913,2]
[408704970,1774157442496,-396.832438,0.00021913,2]
[408704971,1774157442506,-396.832438,0.00021913,2]
[408704972,1774157442516,-396.832448,0.00021913,2]
[408704973,1774157442526,-151.0,0.00021914,2]
[408704974,1774157442535,-151.0,0.00021914,2]
[408704975,1774157442545,-151.0,0.00021914,2]
[408704976,1774157442555,-151.0,0.00021914,2]
[408704977,1774157442564,-151.0,0.00021914,2]
[408704978,1774157442574,-151.0,0.00021914,2]
[408704979,1774157442583,-151.0,0.00021914,2]
[408704980,1774157442593,-151.0,0.00021914,2]
[408704981,1774157442603,-151.0,0.00021914,2]
[408704982,1774157442612,-151.0,0.00021914,2]
[408704983,1774157442622,-151.0,0.00021914,2]
[408704984,1774157442631,-151.0,0.00021914,2]
[408704985,1774157442641,-151.0,0.00021914,2]
[408704986,1774157442651,-151.0,0.00021914,2]
[408704987,1774157442660,-151.0,0.00021914,2]
[408704988,1774157442670,-151.0,0.00021914,2]
[408704989,1774157442679,-275.43748,0.00021914,2]
[408704990,1774157442689,-315.490543,0.00021914,2]
[408704991,1774157442699,-315.490543,0.00021914,2]
[408704992,1774157442709,-315.490543,0.00021914,2]
[408704993,1774157442718,-315.490543,0.00021914,2]
[408704994,1774157442728,-315.490543,0.00021914,2]
[408704995,1774157442737,-315.490543,0.00021914,2]
[408704996,1774157442746,-315.490543,0.00021914,2]
[408704997,1774157442757,-315.490543,0.00021914,2]
[408704998,1774157442766,-315.490543,0.00021914,2]
[408704999,1774157442776,-315.490543,0.00021914,2]
[408705000,1774157442785,-315.490543,0.00021914,2]
[408705001,1774157442794,-315.490543,0.00021914,2]
[408705002,1774157442804,-315.490543,0.00021914,2]
[408705003,1774157442814,-315.490543,0.00021914,2]
[408705004,1774157442823,-315.490543,0.00021914,2]
[408705005,1774157442832,-315.490543,0.00021914,2]
[408705006,1774157442842,-315.490543,0.00021914,2]
[408705007,1774157442852,-315.490543,0.00021914,2]
[408705008,1774157442862,-315.490543,0.00021914,2]
[408705009,1774157442872,-315.490551,0.00021914,2]
[408705010,1774157442881,-7143.16319162,0.00021919,60]
[408705011,1774157442891,-375.5850564,0.00021978,2]
[408705012,1774157442900,-429.24006445,0.00022322,2]
[408705013,1774157442910,-417.5867008,0.00022637,2]
[408705014,1774157442920,-7172.65784129,0.00022765,66]
[408705015,1774157442929,-763.29412932,0.00022883,2]
[408705016,1774157442939,-3401.4307332,0.00022884,2]
[408705017,1774157442949,-466.64337509,0.00022884,2]
[408705019,1774157442958,-3401.4307332,0.00022884,2]
[408705020,1774157442967,-3401.4307332,0.00022884,2]
[408705021,1774157442977,-3401.4307332,0.00022884,2]
[408705022,1774157442986,-3401.4307332,0.00022884,2]
[408705023,1774157442995,-3401.4307332,0.00022884,2]
[408705024,1774157443004,-3401.4307332,0.00022884,2]
[408705025,1774157443014,-3401.4307332,0.00022884,2]
[408705026,1774157443023,-3401.4307332,0.00022884,2]
[408705027,1774157443032,-3401.4307332,0.00022884,2]
[408705028,1774157443042,-3401.4307332,0.00022884,2]
[408705029,1774157443051,-3401.4307332,0.00022884,2]
[408705030,1774157443061,-3401.4307332,0.00022884,2]
[408705031,1774157443070,-3401.4307332,0.00022884,2]
[408705032,1774157443080,-3401.4307332,0.00022884,2]
[408705033,1774157443089,-3401.4307332,0.00022884,2]
[408705034,1774157443100,-3401.4307332,0.00022884,2]
[408705035,1774157443111,-3401.4307332,0.00022884,2]
[408705036,1774157443120,-3401.4307332,0.00022884,2]
[408705037,1774157443131,-3401.4307332,0.00022884,2]
[408705038,1774157443140,-3401.4307332,0.00022884,2]
[408705039,1774157443149,-3401.4307332,0.00022884,2]
[408705041,1774157443158,-3401.4307332,0.00022884,2]
[408705042,1774157443168,-3401.4307332,0.00022884,2]
[408705043,1774157443178,-3401.4307332,0.00022884,2]
[408705044,1774157443187,-3401.4307332,0.00022884,2]
[408705045,1774157443197,-3401.4307332,0.00022884,2]
[408705046,1774157443206,-3401.4307332,0.00022884,2]
[408705047,1774157443215,-3401.4307332,0.00022884,2]
[408705048,1774157443224,-3401.4307332,0.00022884,2]
[408705049,1774157443233,-3401.4307332,0.00022884,2]
[408705050,1774157443243,-3401.4307332,0.00022884,2]
[408705051,1774157443252,-3401.4307332,0.00022884,2]
[408705052,1774157443260,-3401.4307332,0.00022884,2]
[408705053,1774157443269,-3401.4307332,0.00022884,2]
[408705054,1774157443280,-3401.4307332,0.00022884,2]
[408705055,1774157443290,-3401.4307332,0.00022884,2]
[408705056,1774157443299,-3401.4307332,0.00022884,2]
[408705057,1774157443309,-3401.4307332,0.00022884,2]
[408705059,1774157443319,-3401.4307332,0.00022884,2]
[408705060,1774157443329,-3401.4307332,0.00022884,2]
[408705061,1774157443338,-3401.4307332,0.00022884,2]
[408705062,1774157443347,-3401.4307332,0.00022884,2]
[408705063,1774157443357,-3401.4307332,0.00022884,2]
[408705064,1774157443366,-3401.4307332,0.00022884,2]
[408705065,1774157443375,-3401.4307332,0.00022884,2]
[408705066,1774157443384,-3401.4307332,0.00022884,2]
[408705067,1774157443393,-3401.4307332,0.00022884,2]
[408705068,1774157443402,-3401.4307332,0.00022884,2]
[408705069,1774157443411,-3401.4307332,0.00022884,2]
[408705070,1774157443420,-3401.4307332,0.00022884,2]
[408705071,1774157443430,-3401.4307332,0.00022884,2]
[408705072,1774157443439,-3401.4307332,0.00022884,2]
[408705073,1774157443449,-3401.4307332,0.00022884,2]
[408705074,1774157443458,-3401.4307332,0.00022884,2]
[408705075,1774157443468,-3401.4307332,0.00022884,2]
[408705076,1774157443477,-3401.4307332,0.00022884,2]
[408705077,1774157443486,-3401.4307332,0.00022884,2]
[408705078,1774157443495,-3401.4307332,0.00022884,2]
[408705079,1774157443506,-3401.4307332,0.00022884,2]
[408705080,1774157443515,-3401.4307332,0.00022884,2]
[408705081,1774157443525,-3401.4307332,0.00022884,2]
[408705082,1774157443535,-3401.4307332,0.00022884,2]
[408705083,1774157443544,-3401.4307332,0.00022884,2]
[408705084,1774157443555,-3401.4307332,0.00022884,2]
[408705085,1774157443564,-3401.4307332,0.00022884,2]
[408705086,1774157443574,-3316.39496487,0.00022884,2]
[408705087,1774157443583,-3316.39496487,0.00022884,2]
[408705088,1774157443592,-3316.39496487,0.00022884,2]
[408705089,1774157443601,-3316.39496487,0.00022884,2]
[408705090,1774157443610,-1750.71136138,0.00022884,2]
[408705105,1774157446490,-2112.0,0.00022884,10]
[408705106,1774157446500,-1374.72311645,0.00022884,2]
[408705164,1774158632216,-5000.0,0.00012612,10]
[408705165,1774158632227,-275.0,0.00012998,2]
[408705206,1774158638355,-1108.31736559,0.00012998,2]
[408705208,1774158638366,-3069.57433538,0.00013098,2]
[408705210,1774158638375,-3468.10822362,0.00013298,2]
[408705212,1774158638384,-3753.37688038,0.00013398,2]
[408705214,1774158638393,-4697.553322,0.00013598,2]
[408705216,1774158638403,-5552.89908164,0.00013698,2]
[408705218,1774158638412,-156.0,0.00013699,2]
[408705221,1774158638421,-1000.0,0.00013699,2]
[408705223,1774158638430,-157.36,0.00013699,2]
[408705225,1774158638440,-250.0,0.00016832,2]
[408705228,1774158638449,-160.0,0.000179,2]
[408705230,1774158638459,-200.0,0.000179,2]
[408705232,1774158638468,-1000.0,0.00018011,2]
[408705234,1774158638478,-2116.0,0.00018512,5]
[408705236,1774158638488,-2209.55301446,0.00019846,28]
[408705238,1774158638500,-5428.1369252,0.00019846,28]
[408705240,1774158638509,-160.0,0.000216,4]
[408705242,1774158638519,-160.0,0.00022,4]
[408705244,1774158638528,-160.77007508,0.00022,5]
[408705246,1774158638538,-289.95,0.00022047,2]
[408705248,1774158638548,-992.57630591,0.00022579,2]
[408705250,1774158638557,-992.57630591,0.00022579,2]
[408705252,1774158638570,-992.57630591,0.00022579,2]
[408705254,1774158638579,-992.57630591,0.00022579,2]
[408705255,1774158638591,-992.57630591,0.00022579,2]
[408705257,1774158638601,-992.57630591,0.00022579,2]
[408705258,1774158638610,-992.57630591,0.00022579,2]
[408705259,1774158638620,-992.57630591,0.00022579,2]
[408705260,1774158638631,-992.57630591,0.00022579,2]
[408705261,1774158638641,-992.57630591,0.00022579,2]
[408705262,1774158638650,-992.57630591,0.00022579,2]
[408705263,1774158638660,-992.57630591,0.00022579,2]
[408705264,1774158638671,-992.57630591,0.00022579,2]
[408705265,1774158638680,-992.57630591,0.00022579,2]
[408705266,1774158638689,-992.57630591,0.00022579,2]
[408705267,1774158638699,-992.57630591,0.00022579,2]
[408705268,1774158638709,-992.57630591,0.00022579,2]
[408705269,1774158638720,-992.57630591,0.00022579,2]
[408705270,1774158638729,-992.57630591,0.00022579,2]
[408705271,1774158638739,-992.57630591,0.00022579,2]
[408705272,1774158638750,-744.80303585,0.00022579,2]
[408705277,1774158640864,-994.14871461,0.00022579,10]
[408705285,1774158643568,-944.85128539,0.00022579,10]
[408705286,1774158643579,-247.77327006,0.00022579,2]
[408705287,1774158643594,-992.57630591,0.00022579,2]
[408705288,1774158643604,-992.57630591,0.00022579,2]
[408705289,1774158643614,-933.55057098,0.00022579,2]
[408705290,1774158643627,-59.02573493,0.00022579,2]
[408705291,1774158643636,-992.57630591,0.00022579,2]
[408705292,1774158643646,-223.77986061,0.00022579,2]
[408705293,1774158643659,-768.7964453,0.00022579,2]
[408705294,1774158643669,-992.57630591,0.00022579,2]
[408705295,1774158643678,-127.5305309,0.00022579,2]
[408705302,1774158646408,-1866.0,0.00022579,10]
[408705303,1774158646417,-865.04577501,0.00022579,2]
[408705304,1774158646427,-992.57630591,0.00022579,2]
[408705305,1774158646436,-992.57630591,0.00022579,2]
[408705306,1774158646446,-992.57630591,0.00022579,2]
[408705307,1774158646455,-992.57630591,0.00022579,2]
[408705308,1774158646465,-992.57630591,0.00022579,2]
[408705309,1774158646474,-917.06755296,0.00022579,2]
[408705311,1774158646574,-75.50875295,0.00022579,2]
[408705312,1774158646588,-992.57630591,0.00022579,2]
[408705313,1774158646597,-992.57630591,0.00022579,2]
[408705314,1774158646607,-992.57630591,0.00022579,2]
[408705315,1774158646617,-992.57630591,0.00022579,2]
[408705316,1774158646628,-992.57630591,0.00022579,2]
[408705317,1774158646637,-992.57630591,0.00022579,2]
[408705318,1774158646646,-992.57630591,0.00022579,2]
[408705319,1774158646657,-992.57630591,0.00022579,2]
[408705320,1774158646666,-491.10692173,0.00022579,2]
[408705321,1774158646677,-501.46938418,0.00022579,2]
[408705322,1774158646687,-992.57630591,0.00022579,2]
[408705323,1774158646697,-992.57630591,0.00022579,2]
[408705324,1774158646706,-992.57630591,0.00022579,2]
[408705325,1774158646716,-992.57630591,0.00022579,2]
[408705326,1774158646725,-992.57630591,0.00022579,2]
[408705327,1774158646735,-992.57630591,0.00022579,2]
[408705328,1774158646744,-992.57630591,0.00022579,2]
[408705329,1774158646754,-992.57630591,0.00022579,2]
[408705330,1774158646764,-992.57630591,0.00022579,2]
[408705331,1774158646776,-992.57630591,0.00022579,2]
[408705332,1774158646792,-992.57630591,0.00022579,2]
[408705333,1774158646804,-992.57630591,0.00022579,2]
[408705334,1774158646815,-992.57630591,0.00022579,2]
[408705335,1774158646824,-992.57630591,0.00022579,2]
[408705336,1774158646834,-992.57630591,0.00022579,2]
[408705337,1774158646843,-992.57630591,0.00022579,2]
[408705338,1774158646853,-992.57630591,0.00022579,2]
[408705339,1774158646862,-245.670121,0.0002258,2]
[408705340,1774158646871,-245.670121,0.0002258,2]
[408705341,1774158646881,-245.670121,0.0002258,2]
[408705342,1774158646891,-245.670121,0.0002258,2]
[408705343,1774158646900,-272.612653,0.00022581,2]
[408705344,1774158646910,-245.670121,0.00022581,2]
[408705345,1774158646920,-245.670121,0.00022581,2]
[408705346,1774158646930,-245.670121,0.00022581,2]
[408705347,1774158646940,-245.670121,0.00022581,2]
[408705348,1774158646949,-66192.79930736,0.00022581,2]
[408705430,1774159832423,-371.005,0.00010468,10]
[408705437,1774159832480,-3319.23985656,0.00010468,10]
[408705549,1774159840926,-988.13661059,0.00010468,10]
[408705550,1774159840938,-321.61853285,0.00010468,10]
[408705551,1774159840948,-8.15881949,0.00010574,2]
[408705856,1774159846658,-5000.0,0.00010468,10]
[408705858,1774159846668,-170.96753751,0.00010574,2]
[408705860,1774159846678,-179.126357,0.00013217,2]
[408705862,1774159846687,-297.05631253,0.00013426,2]
[408705866,1774159846717,-202.94368747,0.00013426,2]
[408705868,1774159846726,-500.0,0.00013426,2]
[408705870,1774159846735,-1000.0,0.00013699,2]
[408705872,1774159846745,-179.126357,0.00015861,2]
[408705874,1774159846754,-179.126357,0.00018504,2]
[408705876,1774159846763,-1910.0,0.00018512,5]
[408705878,1774159846773,-300.0,0.00019619,2]
[408705880,1774159846782,-670.68760071,0.0001962,2]
[408705882,1774159846791,-964.82435488,0.0001962,2]
[408705884,1774159846801,-179.126357,0.00021148,2]
[408705886,1774159846810,-2581.8482555,0.00021702,2]
[408705888,1774159846819,-949.44962576,0.000225,30]
[408705927,1774160798382,-100000.0,0.00031896,30]
[408705928,1774160798409,-10000.0,0.00031896,30]
[408705929,1774160798436,-100000.0,0.00031896,30]
[408705930,1774160798463,-15049.63248332,0.00031896,40]
[408705931,1774160798488,-1617.0,0.00031896,30]
[408705932,1774160798515,-86626.33,0.00031896,30]
[408705933,1774160798541,-9463.16710926,0.00031896,31]
[408705934,1774160798566,-300000.0,0.00031896,30]
[408705935,1774160798591,-5000.0,0.00031896,30]
[408705936,1774160798617,-117087.18339008,0.00031896,60]
[408705937,1774160798643,-10000.0,0.00031896,60]
[408705938,1774160798667,-87250.68603848,0.00031896,120]
[408705939,1774160798693,-10023.51261232,0.00031896,120]
[408705940,1774160798718,-300000.0,0.00031896,68]
[408705941,1774160798744,-300000.0,0.00031896,45]
[408705942,1774160798773,-20000.0,0.00031896,120]
[408705943,1774160798799,-10000.0,0.00031896,120]
[408705944,1774160798826,-10000.0,0.00031896,120]
[408705945,1774160798851,-10000.0,0.00031896,120]
[408705946,1774160798879,-10000.0,0.00031896,120]
[408705947,1774160798905,-10000.0,0.00031896,120]
[408705948,1774160798931,-10000.0,0.00031896,120]
[408705949,1774160798956,-10000.0,0.00031896,120]
[408705950,1774160798982,-10000.0,0.00031896,120]
[408705951,1774160799009,-16244.22456811,0.00031896,120]
[408705952,1774160799034,-3324.42999999,0.00031896,120]
[408705953,1774160799059,-100000.0,0.00031896,120]
[408705954,1774160799083,-100000.0,0.00031896,30]
[408705955,1774160799108,-1564.74644548,0.00031896,120]
[408705956,1774160799132,-178.36,0.00031896,120]
[408705957,1774160799157,-3303.0,0.00031896,120]
[408705958,1774160799183,-7179.957,0.00031896,60]
[408705959,1774160799208,-50888.192,0.00031896,120]
[408705960,1774160799235,-100000.0,0.00031896,120]
[408705961,1774160799259,-11966.64724237,0.00031896,120]
[408705962,1774160799285,-1336.75829464,0.00031896,120]
[408705963,1774160799311,-12799.92381554,0.00031896,60]
[408705964,1774160799337,-685.793,0.00031896,120]
[408705965,1774160799362,-685.793,0.00031896,120]
[408705966,1774160799387,-685.793,0.00031896,120]
[408705967,1774160799412,-685.793,0.00031896,120]
[408705968,1774160799437,-2000.0,0.00031896,120]
[408705969,1774160799461,-362.30968777,0.00031896,120]
[408705970,1774160799486,-181.15484389,0.00031896,120]
[408705971,1774160799510,-3000.0,0.00031896,120]
[408705972,1774160799535,-530355.50216437,0.00031896,120]
[408705973,1774160799559,-7766.75419069,0.00031896,30]
[408705974,1774160799584,-5308.87890174,0.00031896,120]
[408705975,1774160799608,-4705.32276784,0.00031896,60]
[408705976,1774160799632,-155911.42376033,0.00031896,120]
[408705977,1774160799657,-1458199.00768502,0.00031896,120]
[408705978,1774160799680,-5664.26482685,0.00031896,120]
[408705979,1774160799704,-5394.61662862,0.00031896,30]
[408705980,1774160799729,-385965.89516705,0.00031896,120]
[408705981,1774160799752,-3651.09677573,0.00031896,120]
[408705982,1774160799777,-4525.42341637,0.00031896,120]
[408705983,1774160799802,-77295.71321995,0.00031896,120]
[408705984,1774160799826,-5058.5343933,0.00031896,120]
[408705985,1774160799850,-5017.00036086,0.00031896,120]
[408705986,1774160799874,-5000.0,0.00031896,120]
[408705987,1774160799899,-684.872,0.00031896,120]
[408705988,1774160799923,-684.872,0.00031896,120]
[408705989,1774160799947,-684.872,0.00031896,120]
[408705990,1774160799971,-684.872,0.00031896,120]
[408705991,1774160800213,-684.872,0.00031896,120]
[408705992,1774160800240,-4133.0,0.00031896,120]
[408705993,1774160800267,-1200.0,0.00031896,30]
[408705994,1774160800293,-20000.0,0.00031896,120]
[408705996,1774160800319,-4435.0,0.00031896,120]
[408705997,1774160800345,-4966.70473214,0.00031896,120]
[408705998,1774160800372,-100000.0,0.00031896,120]
[408705999,1774160800399,-100000.0,0.00031896,120]
[408706000,1774160800424,-100000.0,0.00031896,120]
[408706001,1774160800449,-32831.11347789,0.00031896,120]
[408706002,1774160804700,-67168.88652211,0.00031896,120]
[408706003,1774160804729,-100000.0,0.00031896,120]
[408706004,1774160804756,-100000.0,0.00031896,120]
[408706005,1774160804783,-100000.0,0.00031896,120]
[408706006,1774160804810,-100000.0,0.00031896,120]
[408706007,1774160804838,-100000.0,0.00031896,120]
[408706008,1774160804863,-100000.0,0.00031896,120]
[408706009,1774160804890,-100000.0,0.00031896,120]
[408706010,1774160804917,-16772.95992787,0.00031896,120]
[408706011,1774160804942,-1399.25420315,0.00031896,120]